bitfinex-derivatives/quotes_BTCF0:USTF0_20241116
["timestamp","ask_amount","ask_price","bid_price","bid_amount"]
[1731795424715,0.29274888,90956.0,90955.0,0.06386952]
[1731795425524,0.33025984,90956.0,90955.0,0.06386952]
[1731795425832,0.13296888,90956.0,90955.0,0.06386952]
[1731795428329,0.13296888,90956.0,90955.0,0.06386911]
[1731795428521,0.13296888,90956.0,90955.0,0.2616196]
[1731795429527,0.0016074,90956.0,90955.0,0.17381298]
[1731795429736,0.00011913,90963.0,90962.0,0.054932]
[1731795429929,0.00011913,90963.0,90962.0,0.06386511]
[1731795430418,0.00011913,90963.0,90962.0,0.17380052]
[1731795431133,0.13161594,90963.0,90962.0,0.17380052]
[1731795431331,0.00011913,90963.0,90962.0,0.17380052]
[1731795431733,0.00011913,90963.0,90962.0,0.16486741]
[1731795431931,0.00011913,90963.0,90962.0,0.17379932]
[1731795432521,0.13161594,90963.0,90962.0,0.17379932]
[1731795432731,0.00011913,90963.0,90962.0,0.17379932]
[1731795435127,0.00011913,90963.0,90962.0,0.16486741]
[1731795435342,0.00011913,90963.0,90962.0,0.17379906]
[1731795435634,0.00011913,90963.0,90962.0,0.17379903]
[1731795436034,0.00011913,90963.0,90962.0,0.22830907]
[1731795438326,0.00011913,90963.0,90962.0,0.29687655]
[1731795438834,0.00011913,90963.0,90962.0,0.28794493]
[1731795439139,0.00011913,90963.0,90962.0,0.29687668]
[1731795443643,0.19729096,90983.0,90962.0,0.29687668]
[1731795443644,0.19729096,90984.0,90980.0,0.054921]
[1731795443965,0.07788,90988.0,90984.0,0.054918]
[1731795444133,0.3618,90993.0,90984.0,0.06384975]
[1731795444328,0.07788,90990.0,90984.0,0.06384975]
[1731795444838,8.42e-05,90989.0,90984.0,0.06397297]
[1731795445345,8.42e-05,90989.0,90984.0,0.1738818]
[1731795446241,8.42e-05,90989.0,90984.0,0.17388036]
[1731795448440,8.42e-05,90989.0,90984.0,0.16838478]
[1731795448840,8.42e-05,90989.0,90984.0,0.22335011]
[1731795449949,0.00311594,90985.0,90984.0,0.22335011]
[1731795453052,0.00311594,90985.0,90984.0,0.22334997]
[1731795453451,0.00311594,90985.0,90984.0,0.36048493]
[1731795453657,0.00311594,90985.0,90984.0,0.29191745]
[1731795455658,0.00404771,90985.0,90984.0,0.36048493]
[1731795456658,0.00404771,90985.0,90984.0,0.35705034]
[1731795456962,0.00239868,90985.0,90984.0,0.35705034]
[1731795459148,8.42e-05,90989.0,90988.0,0.0519395]
[1731795459461,8.42e-05,90989.0,90988.0,0.18907446]
[1731795459650,8.42e-05,90989.0,90988.0,0.3024179]
[1731795459965,8.42e-05,90989.0,90988.0,0.16528294]
[1731795460154,8.42e-05,90989.0,90988.0,0.30241789]
[1731795460554,8.42e-05,90989.0,90988.0,0.23041581]
[1731795463053,8.42e-05,90989.0,90988.0,0.16184833]
[1731795463369,8.42e-05,90989.0,90988.0,0.23041581]
[1731795471268,8.42e-05,90989.0,90988.0,0.16184833]
[1731795471569,8.42e-05,90989.0,90988.0,0.23041581]
[1731795471975,0.00194089,90989.0,90988.0,0.23041581]
[1731795472355,0.0553617,90989.0,90988.0,0.23041581]
[1731795473985,0.05536224,90989.0,90988.0,0.23041581]
[1731795475071,0.05594166,90989.0,90988.0,0.23041581]
[1731795475671,0.05594166,90989.0,90988.0,0.23385042]
[1731795480975,0.05687275,90989.0,90988.0,0.23385042]
[1731795484976,0.05687275,90989.0,90988.0,0.43165925]
[1731795485278,0.05687275,90989.0,90988.0,0.43166]
[1731795485683,0.05687275,90989.0,90988.0,0.23385042]
[1731795486566,0.05687275,90989.0,90988.0,0.43165781]
[1731795486975,0.05687275,90989.0,90988.0,0.23385042]
[1731795487175,0.05687275,90989.0,90988.0,0.43165789]
[1731795487569,0.05687275,90989.0,90988.0,0.4282232]
[1731795487773,0.05687275,90989.0,90988.0,0.43165786]
[1731795487977,0.05687275,90989.0,90988.0,0.43165569]
[1731795488279,0.05687275,90989.0,90988.0,0.23385047]
[1731795488280,0.05350555,90989.0,90988.0,0.23385047]
[1731795488480,0.00353943,90989.0,90988.0,0.23385047]
[1731795489172,0.05696078,90989.0,90988.0,0.23385047]
[1731795491475,0.05696078,90989.0,90988.0,0.43165815]
[1731795491980,0.05696078,90989.0,90988.0,0.23385047]
[1731795493485,0.05696035,90989.0,90988.0,0.23385047]
[1731795496785,0.00353943,90989.0,90988.0,0.23385047]
[1731795496981,0.05696007,90989.0,90988.0,0.23385047]
[1731795497593,0.05696007,90989.0,90988.0,0.23041581]
[1731795497785,0.05696007,90989.0,90988.0,0.23385044]
[1731795498089,0.05696007,90989.0,90988.0,0.23385046]
[1731795498475,0.00353943,90989.0,90988.0,0.23385046]
[1731795498687,0.05696038,90989.0,90988.0,0.23385046]
[1731795501596,0.05696038,90989.0,90988.0,0.43165814]
[1731795501982,0.05696038,90989.0,90988.0,0.43165813]
[1731795503192,0.05696038,90989.0,90988.0,0.43165593]
[1731795503791,0.05696038,90989.0,90988.0,0.23385045]
[1731795506097,0.05696038,90989.0,90988.0,0.20835045]
[1731795509693,0.158946,90989.0,90988.0,0.20835045]
[1731795509895,0.21236695,90989.0,90988.0,0.20835045]
[1731795510486,0.05696038,90989.0,90988.0,0.20835045]
[1731795511988,0.00353943,90989.0,90988.0,0.20835045]
[1731795512805,0.05696038,90989.0,90988.0,0.20835045]
[1731795518997,0.05696038,90989.0,90988.0,0.2083504]
[1731795519216,0.05696038,90989.0,90988.0,0.20491581]
[1731795519504,0.05696038,90989.0,90988.0,0.2083504]
[1731795520606,0.00353943,90989.0,90988.0,0.2083504]
[1731795521196,0.05695939,90989.0,90988.0,0.2083504]
[1731795522505,0.00353943,90989.0,90988.0,0.2083504]
[1731795522713,0.00353943,90989.0,90988.0,0.20491581]
[1731795522898,0.00353943,90989.0,90988.0,0.2083504]
[1731795523503,0.20114629,90989.0,90988.0,0.2083504]
[1731795523702,0.2545662,90989.0,90988.0,0.2083504]
[1731795524607,0.05695934,90989.0,90988.0,0.2083504]
[1731795525211,0.2545662,90989.0,90988.0,0.2083504]
[1731795525615,0.05695934,90989.0,90988.0,0.2083504]
[1731795525914,0.2545662,90989.0,90988.0,0.2083504]
[1731795527422,0.05695934,90989.0,90988.0,0.2083504]
[1731795529611,0.05695934,90989.0,90988.0,0.20835039]
[1731795530608,0.00353943,90989.0,90988.0,0.20835039]
[1731795534031,0.16819767,90989.0,90988.0,0.20835039]
[1731795536003,0.00353943,90989.0,90988.0,0.20835039]
[1731795536725,0.00353943,90989.0,90988.0,0.2083504]
[1731795537226,0.16819767,90989.0,90988.0,0.2083504]
[1731795537523,0.00353943,90989.0,90988.0,0.2083504]
[1731795539021,0.16819767,90989.0,90988.0,0.2083504]
[1731795539420,0.00353943,90989.0,90988.0,0.2083504]
[1731795540331,0.16819767,90989.0,90988.0,0.2083504]
[1731795540519,0.16819767,90989.0,90988.0,0.4713422]
[1731795540819,0.16819767,90989.0,90988.0,0.47134219]
[1731795541319,0.00353943,90989.0,90988.0,0.47134219]
[1731795541540,0.16819767,90989.0,90988.0,0.47134219]
[1731795542720,0.16819767,90989.0,90988.0,0.4713422]
[1731795544226,0.11187444,90989.0,90988.0,0.00343459]
[1731795544828,0.3094813,90989.0,90988.0,0.00343459]
[1731795545119,0.3094813,90989.0,90988.0,0.05835059]
[1731795545424,0.11187444,90989.0,90988.0,0.12348348]
[1731795545719,0.11187859,90989.0,90988.0,0.12691834]
[1731795549531,0.05696359,90989.0,90988.0,0.30538981]
[1731795549827,0.05696359,90989.0,90988.0,0.30195495]
[1731795550026,0.00353943,90989.0,90988.0,0.30538967]
[1731795550330,0.00353943,90989.0,90988.0,0.31088523]
[1731795551126,0.16812188,90989.0,90988.0,0.31088523]
[1731795551325,0.16812188,90989.0,90988.0,0.30538967]
[1731795551529,0.05695985,90989.0,90988.0,0.30538967]
[1731795553026,0.05695985,90989.0,90988.0,0.30195495]
[1731795553326,0.05695985,90989.0,90988.0,0.30538957]
[1731795553625,0.00353943,90989.0,90988.0,0.30538957]
[1731795554835,0.00353943,90989.0,90988.0,0.50306105]
[1731795555023,0.00353943,90989.0,90988.0,0.30538957]
[1731795555530,0.00353943,90989.0,90988.0,0.31088508]
[1731795556433,0.00353943,90989.0,90988.0,0.31088496]
[1731795558436,0.00353943,90989.0,90988.0,0.50306227]
[1731795558616,0.00353943,90989.0,90988.0,0.30538957]
[1731795559428,0.00353943,90989.0,90988.0,0.31088493]
[1731795560027,0.00353943,90989.0,90988.0,0.31088496]
[1731795560623,0.00353943,90989.0,90988.0,0.30538957]
[1731795561332,0.16809632,90989.0,90988.0,0.50306066]
[1731795561727,0.16809632,90989.0,90988.0,0.30538957]
[1731795561929,0.16809632,90989.0,90988.0,0.50306066]
[1731795562131,0.16809632,90989.0,90988.0,0.49962604]
[1731795562328,0.16809632,90989.0,90988.0,0.30538957]
[1731795563631,0.00353943,90989.0,90988.0,0.16825461]
[1731795563831,0.00353943,90989.0,90988.0,0.23682211]
[1731795567735,0.05696002,90989.0,90988.0,0.23682211]
[1731795567934,0.00353943,90989.0,90988.0,0.23682211]
[1731795568528,0.00353943,90989.0,90988.0,0.43449319]
[1731795568529,0.1679636,90989.0,90988.0,0.43449319]
[1731795568729,0.00353943,90989.0,90988.0,0.43449319]
[1731795568929,0.00353943,90989.0,90988.0,0.43105856]
[1731795569128,0.00353943,90989.0,90988.0,0.23682211]
[1731795574647,0.00353943,90989.0,90988.0,0.23338747]
[1731795574947,0.00353943,90989.0,90988.0,0.23682211]
[1731795576042,0.05696011,90989.0,90988.0,0.43453334]
[1731795576945,0.05696011,90989.0,90988.0,0.23682211]
[1731795577544,0.05696011,90989.0,90988.0,0.30538959]
[1731795578048,0.05696011,90989.0,90988.0,0.50310082]
[1731795578648,0.05696011,90989.0,90988.0,0.43453334]
[1731795578848,0.05696011,90989.0,90988.0,0.23682211]
[1731795580043,0.05696011,90989.0,90988.0,0.30538959]
[1731795580845,0.05696011,90989.0,90988.0,0.50310082]
[1731795581541,0.05696011,90989.0,90988.0,0.30538959]
[1731795582150,0.05696011,90989.0,90988.0,0.50310082]
[1731795582353,0.05696011,90989.0,90988.0,0.30195495]
[1731795582551,0.05696011,90989.0,90988.0,0.30538958]
[1731795582947,0.05696011,90989.0,90988.0,0.31088497]
[1731795583747,0.05696011,90989.0,90988.0,0.30538958]
[1731795584052,0.16804019,90989.0,90988.0,0.30538958]
[1731795585664,0.16804019,90989.0,90988.0,0.30538956]
[1731795586155,0.16804019,90989.0,90988.0,0.31088496]
[1731795587258,0.16804019,90989.0,90988.0,0.24231748]
[1731795587552,0.16804019,90989.0,90988.0,0.31088496]
[1731795588355,0.00353943,90989.0,90988.0,0.31088496]
[1731795588760,0.16808183,90989.0,90988.0,0.31088496]
[1731795589150,0.16808183,90989.0,90988.0,0.31088489]
[1731795591158,0.00353943,90989.0,90988.0,0.57387669]
[1731795592756,0.16808183,90989.0,90988.0,0.57387669]
[1731795592960,0.00353943,90989.0,90988.0,0.56494675]
[1731795593156,0.00353943,90989.0,90988.0,0.30745033]
[1731795593157,0.16808183,90989.0,90988.0,0.30745033]
[1731795593362,0.16808183,90989.0,90988.0,0.31088494]
[1731795593556,0.00353943,90989.0,90988.0,0.57387674]
[1731795594360,0.00353943,90989.0,90988.0,0.56838134]
[1731795594550,0.00353943,90989.0,90988.0,0.57731128]
[1731795596258,0.00353943,90989.0,90988.0,0.57387669]
[1731795596669,0.00353943,90989.0,90988.0,0.56494675]
[1731795596855,0.00353943,90989.0,90988.0,0.56838134]
[1731795597059,0.00353943,90989.0,90988.0,0.57387669]
[1731795598458,0.16808183,90989.0,90988.0,0.31088489]
[1731795599160,0.20101252,90989.0,90988.0,0.31088489]
[1731795599760,0.25443249,90989.0,90988.0,0.31088489]
[1731795600355,0.25443249,90989.0,90988.0,0.24231741]
[1731795602456,0.25443249,90989.0,90988.0,0.23338747]
[1731795602652,0.25443249,90989.0,90988.0,0.24231741]
[1731795603568,0.0569594,90989.0,90988.0,0.44012157]
[1731795606080,0.00353943,90989.0,90988.0,0.49637927]
[1731795606260,0.00353943,90989.0,90988.0,0.50530921]
[1731795608870,0.16806502,90989.0,90988.0,0.50530921]
[1731795613559,0.00353943,90989.0,90988.0,0.24231741]
[1731795614172,0.05695939,90989.0,90988.0,0.24231741]
[1731795616667,0.05695939,90989.0,90988.0,0.23338747]
[1731795616874,0.05695939,90989.0,90988.0,0.24231741]
[1731795618680,0.05695939,90989.0,90988.0,0.07749742]
[1731795618681,0.11187439,90989.0,90988.0,0.07749742]
[1731795619478,0.11187439,90989.0,90988.0,0.2753123]
[1731795619676,0.11187439,90989.0,90988.0,0.07749742]
[1731795619875,0.25593176,90989.0,90988.0,0.07749742]
[1731795620089,0.30935172,90989.0,90988.0,0.07406283]
[1731795620274,0.30935172,90989.0,90988.0,0.07749815]
[1731795620461,0.30935172,90989.0,90988.0,0.13241415]
[1731795620666,0.11187439,90989.0,90988.0,0.13241415]
[1731795621270,0.11187718,90989.0,90988.0,0.13241415]
[1731795621766,0.11187806,90989.0,90988.0,0.13241415]
[1731795622483,0.11187806,90989.0,90988.0,0.13241404]
[1731795624277,0.11187806,90989.0,90988.0,0.12897921]
[1731795624473,0.11187806,90989.0,90988.0,0.13790985]
[1731795624677,0.11187806,90989.0,90988.0,0.13241412]
[1731795625185,0.05845443,90989.0,90988.0,0.13241412]
[1731795626780,0.41925443,90989.0,90988.0,0.13241412]
[1731795627378,0.47267869,90989.0,90988.0,0.13241412]
[1731795635392,0.47267869,90989.0,90988.0,0.12348348]
[1731795635575,0.47267869,90989.0,90988.0,0.13241388]
[1731795636183,0.58367373,90989.0,90988.0,0.33014376]
[1731795637600,0.41925443,90989.0,90988.0,0.33014376]
[1731795637980,0.58367778,90989.0,90988.0,0.33014376]
[1731795638176,0.58367778,90989.0,90988.0,0.13241388]
[1731795638590,0.58368001,90989.0,90988.0,0.32120392]
[1731795638787,0.58368001,90989.0,90988.0,0.13241409]
[1731795638987,0.49693443,90989.0,90988.0,0.33013435]
[1731795639189,0.66136246,90989.0,90988.0,0.33013435]
[1731795639393,0.49693443,90989.0,90988.0,0.33013435]
[1731795640484,0.66135682,90989.0,90988.0,0.13241409]
[1731795640996,0.52876182,90989.0,90988.0,0.24231808]
[1731795641293,0.36433943,90989.0,90988.0,0.24231808]
[1731795644198,0.41776099,90989.0,90988.0,0.24231808]
[1731795645699,0.05696099,90989.0,90988.0,0.24231808]
[1731795645891,0.05696138,90989.0,90988.0,0.24231808]
[1731795648192,0.25443871,90989.0,90988.0,0.24231808]
[1731795648589,0.05696138,90989.0,90988.0,0.24231808]
[1731795651199,0.1680536,90989.0,90988.0,0.24231808]
[1731795651593,0.00353943,90989.0,90988.0,0.24231808]
[1731795652087,0.16804997,90989.0,90988.0,0.24231808]
[1731795653304,0.00353943,90989.0,90988.0,0.24231808]
[1731795653489,0.16805856,90989.0,90988.0,0.24231808]
[1731795654707,0.00353943,90989.0,90988.0,0.24231808]
[1731795655098,0.1680637,90989.0,90988.0,0.24231808]
[1731795656096,0.00353943,90989.0,90988.0,0.23338747]
[1731795656307,0.16806271,90989.0,90988.0,0.24231776]
[1731795658694,0.16806271,90989.0,90988.0,0.24231762]
[1731795659110,0.16809445,90989.0,90988.0,0.24231762]
[1731795660199,0.00353943,90989.0,90988.0,0.24231762]
[1731795660811,0.16809523,90989.0,90988.0,0.24231762]
[1731795661000,0.00353943,90989.0,90988.0,0.24231762]
[1731795661200,0.16809523,90989.0,90988.0,0.24231762]
[1731795661395,0.00353943,90989.0,90988.0,0.24231762]
[1731795661815,0.16809523,90989.0,90988.0,0.24231762]
[1731795662407,0.05696035,90989.0,90988.0,0.44009349]
[1731795662801,0.05696035,90989.0,90988.0,0.24231762]
[1731795663103,0.16804274,90989.0,90988.0,0.24231762]
[1731795664106,0.00353943,90989.0,90988.0,0.24231762]
[1731795666012,0.16805056,90989.0,90988.0,0.23338747]
[1731795666312,0.05696046,90989.0,90988.0,0.24231754]
[1731795667213,0.05696046,90989.0,90988.0,0.44009783]
[1731795668499,0.05696019,90989.0,90988.0,0.24231754]
[1731795671220,0.05696019,90989.0,90988.0,0.17375006]
[1731795673212,0.05696019,90989.0,90988.0,0.16481999]
[1731795673422,0.05696019,90989.0,90988.0,0.17375009]
[1731795674417,0.16806715,90989.0,90988.0,0.17375009]
[1731795675514,0.00353943,90989.0,90988.0,0.17375009]
[1731795677026,0.00353943,90989.0,90988.0,0.16825467]
[1731795677318,0.00353943,90989.0,90988.0,0.17375014]
[1731795678114,0.16807106,90989.0,90988.0,0.17375014]
[1731795678311,0.16807136,90989.0,90988.0,0.17375014]
[1731795680025,0.00353943,90989.0,90988.0,0.17375014]
[1731795680331,0.16811457,90989.0,90988.0,0.17375014]
[1731795680616,0.00353943,90989.0,90988.0,0.17375014]
[1731795680823,0.16811582,90989.0,90988.0,0.17375014]
[1731795681411,0.00353943,90989.0,90988.0,0.17375014]
[1731795682111,0.16811728,90989.0,90988.0,0.17375014]
[1731795682507,0.16811728,90989.0,90988.0,0.1737501]
[1731795683611,0.16811728,90989.0,90988.0,0.43751474]
[1731795683817,0.16811728,90989.0,90988.0,0.42858463]
[1731795684129,0.00353943,90989.0,90988.0,0.1737501]
[1731795685523,0.00353943,90989.0,90988.0,0.00893011]
[1731795685821,0.18044394,90989.0,90988.0,0.00893011]
[1731795686634,0.18044394,90989.0,90988.0,0.00893056]
[1731795687822,0.18044394,90989.0,90987.0,0.19778949]
[1731795688023,0.10833803,90988.0,90987.0,0.19778949]
[1731795688422,0.11179326,90988.0,90987.0,0.2067202]
[1731795689517,0.11179326,90988.0,90987.0,0.00893071]
[1731795697332,0.11179529,90988.0,90987.0,0.00893071]
[1731795698023,0.18935529,90988.0,90987.0,0.00893071]
[1731795700335,0.18935529,90988.0,90987.0,0.00893069]
[1731795704525,0.33340856,90988.0,90987.0,0.00893069]
[1731795704733,0.38683262,90988.0,90987.0,0.00893069]
[1731795705447,0.38683262,90988.0,90987.0,0.00893067]
[1731795706240,0.18935529,90988.0,90987.0,0.00893067]
[1731795706938,0.18935563,90988.0,90987.0,0.00893067]
[1731795707132,0.33330181,90988.0,90987.0,0.00893067]
[1731795707332,0.38672621,90988.0,90987.0,0.00893067]
[1731795708542,0.18935563,90988.0,90987.0,0.00893067]
[1731795708744,0.13443963,90988.0,90984.0,0.05504122]
[1731795708938,0.054918,90985.0,90984.0,0.05504122]
[1731795709246,0.1083424,90985.0,90984.0,0.06397177]
[1731795709744,0.11179763,90985.0,90984.0,0.06397177]
[1731795711743,0.22288228,90985.0,90984.0,0.06397177]
[1731795711939,0.22288228,90985.0,90984.0,0.26168554]
[1731795712241,0.05837323,90985.0,90984.0,0.06397177]
[1731795712644,0.05837323,90985.0,90984.0,0.0639719]
[1731795713535,0.22291299,90985.0,90984.0,0.0639719]
[1731795713740,0.05837323,90985.0,90984.0,0.0639719]
[1731795713942,0.22292789,90985.0,90984.0,0.0639719]
[1731795714162,0.05837323,90985.0,90984.0,0.0639719]
[1731795714333,0.11179755,90985.0,90984.0,0.0639719]
[1731795715239,0.11179755,90985.0,90984.0,0.26173842]
[1731795716142,0.11179755,90985.0,90984.0,0.26173846]
[1731795716849,0.11179755,90985.0,90984.0,0.06397194]
[1731795718538,0.11179755,90985.0,90984.0,0.26173846]
[1731795718850,0.25574381,90985.0,90984.0,0.06397194]
[1731795719150,0.30916813,90985.0,90984.0,0.06397194]
[1731795720548,0.11179755,90985.0,90984.0,0.06397194]
[1731795720934,0.30916845,90985.0,90984.0,0.06397194]
[1731795721936,0.11179787,90985.0,90984.0,0.06397194]
[1731795722355,0.11179787,90985.0,90984.0,0.0639719]
[1731795723445,0.25574381,90985.0,90984.0,0.0639719]
[1731795723640,0.30916845,90985.0,90984.0,0.0639719]
[1731795723835,0.11179787,90985.0,90984.0,0.0639719]
[1731795726659,0.11179787,90985.0,90984.0,0.26173842]
[1731795727661,0.11179787,90985.0,90984.0,0.26173838]
[1731795728450,0.11179787,90985.0,90984.0,0.06397186]
[1731795732148,0.18931787,90985.0,90984.0,0.06397186]
[1731795735453,0.11179787,90985.0,90984.0,0.06397186]
[1731795735650,0.18931787,90985.0,90984.0,0.06397186]
[1731795736651,0.18931787,90985.0,90984.0,0.26177045]
[1731795738254,0.18931787,90985.0,90984.0,0.06397186]
[1731795740347,0.18931787,90985.0,90984.0,0.2617703]
[1731795741755,0.33341288,90985.0,90984.0,0.06397186]
[1731795742055,0.18931999,90985.0,90984.0,0.06397186]
[1731795742261,0.38683964,90985.0,90984.0,0.06397186]
[1731795742450,0.18931999,90985.0,90984.0,0.06397186]
[1731795742852,0.34683827,90985.0,90980.0,0.0328]
[1731795743060,0.13589323,90985.0,90984.0,0.00343503]
[1731795743361,0.34683796,90985.0,90984.0,0.05835303]
[1731795743657,0.1893206,90985.0,90984.0,0.054918]
[1731795743958,0.1893206,90985.0,90984.0,0.05501552]
[1731795744176,0.18932034,90985.0,90984.0,0.05501552]
[1731795744348,0.33335676,90985.0,90984.0,0.05501552]
[1731795744543,0.38678387,90985.0,90984.0,0.05501552]
[1731795745861,0.38678525,90985.0,90984.0,0.05501552]
[1731795746265,0.1893203,90985.0,90984.0,0.05501552]
[1731795746559,0.25583411,90985.0,90984.0,0.05501552]
[1731795746763,0.1892803,90985.0,90984.0,0.05501552]
[1731795747366,0.33327372,90985.0,90984.0,0.05501552]
[1731795747554,0.38670079,90985.0,90984.0,0.05501552]
[1731795748267,0.1892803,90985.0,90984.0,0.05501552]
[1731795753162,0.1892803,90985.0,90984.0,0.06051164]
[1731795753866,0.18928045,90985.0,90984.0,0.06051164]
[1731795754051,0.55008045,90985.0,90984.0,0.06051164]
[1731795754860,0.18928045,90985.0,90984.0,0.06394672]
[1731795755165,0.55008045,90985.0,90984.0,0.06394672]
[1731795757270,0.55008045,90985.0,90984.0,0.06394676]
[1731795757572,0.74740086,90985.0,90984.0,0.06394676]
[1731795757960,0.74740086,90985.0,90984.0,0.05501552]
[1731795758159,0.74740086,90985.0,90984.0,0.06394671]
[1731795758455,0.55008045,90985.0,90984.0,0.06394671]
[1731795758659,0.74740086,90985.0,90984.0,0.06394671]
[1731795759759,0.55008045,90985.0,90984.0,0.06394671]
[1731795759955,0.74740086,90985.0,90984.0,0.06394671]
[1731795760160,0.74740086,90985.0,90984.0,0.00902871]
[1731795760476,0.55008045,90985.0,90984.0,0.00902871]
[1731795760855,0.74740086,90985.0,90984.0,0.00902871]
[1731795761264,0.55008045,90985.0,90984.0,0.00902871]
[1731795762876,0.55008045,90985.0,90984.0,9.752e-05]
[1731795763076,0.55008045,90985.0,90984.0,0.00902884]
[1731795763667,0.61864793,90985.0,90984.0,0.00902884]
[1731795763876,0.56522071,90985.0,90984.0,0.00902884]
[1731795764475,0.61864908,90985.0,90984.0,0.00902884]
[1731795765076,0.61864908,90985.0,90984.0,9.752e-05]
[1731795765264,0.61864908,90985.0,90984.0,0.00902884]
[1731795765771,0.61864908,90985.0,90984.0,0.20681182]
[1731795766983,0.61864908,90985.0,90984.0,0.20681187]
[1731795767172,0.94836908,90985.0,90984.0,0.00549623]
[1731795767472,0.054922,90979.0,90978.0,0.0051]
[1731795767678,0.054922,90979.0,90973.0,0.0051]
[1731795767679,0.054925,90974.0,90973.0,0.0051]
[1731795767981,0.12349448,90970.0,90969.0,0.00164872]
[1731795768275,0.17692285,90970.0,90969.0,0.00164872]
[1731795768577,0.18037808,90970.0,90969.0,0.00164872]
[1731795769271,0.12694971,90970.0,90969.0,0.00164872]
[1731795769778,0.18038717,90970.0,90969.0,0.00164872]
[1731795772181,0.18038717,90970.0,90967.0,4.957e-05]
[1731795772182,0.054928,90968.0,90967.0,4.957e-05]
[1731795772482,0.21906188,90968.0,90967.0,4.957e-05]
[1731795772670,0.58331711,90968.0,90967.0,4.957e-05]
[1731795773476,0.41918323,90968.0,90967.0,4.957e-05]
[1731795774678,0.58331711,90968.0,90967.0,4.957e-05]
[1731795774979,0.58321175,90968.0,90967.0,4.957e-05]
[1731795775490,0.41918323,90968.0,90967.0,4.957e-05]
[1731795777483,0.74898323,90968.0,90967.0,4.957e-05]
[1731795777678,0.74898323,90968.0,90960.0,0.0051]
[1731795777679,0.12349948,90961.0,90960.0,0.0051]
[1731795777880,0.054937,90953.0,90952.0,0.0375]
[1731795778075,0.48430448,90953.0,90952.0,0.03789809]
[1731795778679,0.41919223,90953.0,90952.0,0.00549809]
[1731795779385,0.41919223,90953.0,90952.0,0.00893459]
[1731795780580,0.55024034,90953.0,90952.0,0.00343638]
[1731795780886,0.41919223,90953.0,90952.0,0.00343638]
[1731795781981,0.36425523,90953.0,90944.0,0.0051]
[1731795782192,0.42936748,90945.0,90944.0,0.0051]
[1731795782374,0.50680748,90945.0,90944.0,0.00893516]
[1731795782688,0.51026271,90945.0,90944.0,0.00893516]
[1731795783483,0.56520471,90945.0,90944.0,0.00893516]
[1731795783683,0.56520471,90945.0,90944.0,0.0034366]
[1731795788573,0.054947,90938.0,90936.0,0.0358]
[1731795788778,0.43282271,90937.0,90936.0,0.0307]
[1731795789191,0.43282271,90937.0,90936.0,0.03413697]
[1731795789384,0.43282271,90937.0,90936.0,0.00343697]
[1731795789385,0.55633719,90937.0,90936.0,0.00343697]
[1731795789588,0.55633719,90937.0,90932.0,0.0316]
[1731795789589,0.054949,90934.0,90932.0,0.0316]
[1731795789783,0.08089523,90933.0,90932.0,0.0316]
[1731795790097,0.08089523,90933.0,90932.0,0.03503715]
[1731795792686,0.08089523,90933.0,90932.0,0.04053656]
[1731795792886,0.08089523,90933.0,90932.0,0.0316]
[1731795793099,0.08089523,90933.0,90932.0,0.03503711]
[1731795793299,0.08089523,90933.0,90932.0,0.04053642]
[1731795795702,0.08089523,90933.0,90932.0,0.0316]
[1731795795884,0.08089523,90933.0,90932.0,0.04053634]
[1731795797106,0.44169523,90933.0,90932.0,0.04053634]
[1731795799808,0.44169523,90933.0,90932.0,0.04053629]
[1731795800103,0.08089523,90933.0,90932.0,0.04053629]
[1731795800311,0.44169523,90933.0,90932.0,0.04053629]
[1731795801510,0.08089523,90933.0,90932.0,0.04053629]
[1731795801810,0.44169523,90933.0,90932.0,0.04053629]
[1731795802112,0.44169523,90933.0,90932.0,0.07283629]
[1731795803811,0.44169523,90933.0,90932.0,0.07283636]
[1731795804304,0.36425523,90933.0,90932.0,0.07283636]
[1731795804509,0.44165523,90933.0,90932.0,0.07283636]
[1731795807004,0.44165523,90933.0,90932.0,0.07283615]
[1731795807407,0.57266448,90933.0,90932.0,0.07283615]
[1731795808312,0.44165523,90933.0,90932.0,0.07283615]
[1731795809015,0.08085523,90933.0,90932.0,0.07283615]
[1731795809206,0.44165523,90933.0,90932.0,0.07283615]
[1731795809704,0.60557068,90933.0,90932.0,0.07283615]
[1731795810306,0.44165523,90933.0,90932.0,0.07283615]
[1731795811214,0.49511512,90933.0,90932.0,0.07283615]
[1731795814404,0.49511513,90933.0,90932.0,0.07283661]
[1731795818221,0.49511513,90933.0,90932.0,0.27062915]
[1731795818532,0.49511513,90933.0,90932.0,0.07283661]
[1731795819333,0.49515513,90933.0,90932.0,0.07283661]
[1731795820030,0.49515513,90933.0,90932.0,0.27074992]
[1731795820839,0.49515513,90933.0,90932.0,0.26181331]
[1731795821157,0.49515513,90933.0,90932.0,0.27074999]
[1731795822743,0.49515513,90933.0,90932.0,0.07283668]
[1731795824743,0.49515513,90933.0,90932.0,0.0639]
[1731795824946,0.49515513,90933.0,90932.0,0.27074998]
[1731795825448,0.49515513,90933.0,90932.0,0.32569998]
[1731795825744,0.49515513,90933.0,90932.0,0.12778667]
[1731795827945,0.49515513,90933.0,90932.0,0.12778664]
[1731795828347,0.49515513,90933.0,90932.0,0.11885]
[1731795828647,0.49515513,90933.0,90932.0,0.12778664]
[1731795828849,0.49515513,90933.0,90932.0,0.325689]
[1731795829144,0.49515513,90933.0,90932.0,0.12778664]
[1731795829442,0.49515513,90933.0,90932.0,0.32568882]
[1731795829650,0.49515513,90933.0,90932.0,0.12778664]
[1731795830447,0.49515513,90933.0,90932.0,0.32568978]
[1731795831157,0.49515513,90933.0,90932.0,0.12778664]
[1731795831746,0.49515513,90933.0,90932.0,0.12778665]
[1731795834045,0.69218306,90933.0,90932.0,0.12778665]
[1731795835247,0.69218306,90933.0,90932.0,0.12778664]
[1731795837853,0.69218306,90933.0,90932.0,0.09548664]
[1731795838452,0.69239154,90933.0,90932.0,0.09548664]
[1731795838661,0.69239154,90933.0,90932.0,0.09204947]
[1731795838864,0.69239154,90933.0,90932.0,0.09548669]
[1731795839250,0.41771557,90933.0,90932.0,0.09548669]
[1731795839555,0.49507557,90933.0,90932.0,0.09548669]
[1731795843462,0.49507557,90933.0,90932.0,0.29338983]
[1731795844364,0.49507557,90933.0,90932.0,0.09548669]
[1731795844567,0.49507557,90933.0,90932.0,0.08655]
[1731795844956,0.49507557,90933.0,90932.0,0.0954867]
[1731795845959,0.49507557,90933.0,90932.0,0.08998719]
[1731795846162,0.49507557,90933.0,90932.0,0.0954867]
[1731795846368,0.44161523,90933.0,90932.0,0.0954867]
[1731795846567,0.49507567,90933.0,90932.0,0.0954867]
[1731795849655,0.49507567,90933.0,90932.0,0.08655]
[1731795849860,0.49507567,90933.0,90932.0,0.09548667]
[1731795851171,0.49507551,90933.0,90932.0,0.09548667]
[1731795851761,0.41771551,90933.0,90932.0,0.09548667]
[1731795852063,0.49507551,90933.0,90932.0,0.09548667]
[1731795855372,0.49507551,90933.0,90932.0,0.09548665]
[1731795857578,0.13427551,90933.0,90932.0,0.09548665]
[1731795857765,0.49507551,90933.0,90932.0,0.09548665]
[1731795858071,0.69231148,90933.0,90932.0,0.09548665]
[1731795858565,0.49507551,90933.0,90932.0,0.09548665]
[1731795860678,0.41771551,90933.0,90932.0,0.09548665]